Cogmind - Beta 16.1 @@@ ROGUE MODE // 2026.04.19 @ 17:53:18 Player: Chocolateburger Result: Destroyed by H-88 Terminator with KE Penetrator Performance ------------- Evolutions (8) 4000 Regions Visited (18) 3600 Robots Destroyed (273) 1365 Value Destroyed (11175) 11175 Prototype IDs (45) 900 Alien Tech Used (0) 0 Bonus (2140) 2140 TOTAL SCORE: 23180 Bonus ------- High Alert Combat Kills 1040 Follower Combat Kills 100 Entered Garrisons 200 Used RIF Installer 500 Aligned with FarCom 300 Cogmind --------- Core Integrity 0/1450 Matter 440/600 Energy 91/100 System Corruption 28% Temperature Cool (0) Movement Core (150) Ox2 Location -2/Research Parts ------- > --- POWER (3) -------- (None) > --- PROPULSION (7) --- (None) > --- UTILITY (9) ------ Improved Matter Compressor Advanced Signal Interpreter Improved Targeting Computer Experimental Core Analyzer > --- WEAPON (4) ------- Heavy Machine Gun > --- INVENTORY (5) ---- (None) Peak State ------------ > --- POWER ------------ Particle Reactor Quantum Reactor Light Quantum Reactor > --- PROPULSION ------- Biometal Leg Heavy Armored Exoskeleton Enhanced Biometal Leg Centrium Leg > --- UTILITY ---------- Advanced Heat Sink Advanced Heat Sink High-capacity Storage Unit Experimental Energy Well Improved Matter Compressor Advanced Signal Interpreter Improved Targeting Computer Experimental Core Analyzer Advanced Shield Generator > --- WEAPON ----------- Enhanced Nova Cannon Enhanced Nova Cannon Hardcell Cannon Enhanced Hardcell Cannon > --- INVENTORY -------- Micro Antimatter Reactor Micro Antimatter Reactor Advanced Heavy Siege Treads Advanced Heavy Siege Treads Advanced Heavy Siege Treads Advanced Heavy Siege Treads Advanced ECM Suite Improved Heavy Armor Plating Advanced Point Defense System Heavy Neutron Cannon Enhanced Nova Cannon Hardcell Cannon Hardcell Cannon Fusion Bomb Launcher Falx [Rating: 183] Favorites ----------- Power Improved Ion Engine Engine Improved Ion Engine Power Core Fusion Compressor Reactor Micro Antimatter Reactor Propulsion Light Treads Treads Light Treads Leg Flexi-carbon Leg Wheel Armored Wheel Utility High-capacity Storage Unit Device Improved Heat Sink Storage High-capacity Storage Unit Processor Improved Targeting Computer Hackware Relay Coupler [Grunt] Protection Hardened Medium Armor Plating Weapon Heavy EM Shotgun Energy Gun Heavy EM Shotgun Energy Cannon Enhanced Nova Cannon Ballistic Gun Battle Rifle Ballistic Cannon Hardcell Cannon Launcher Grenade Launcher Special Weapon Remote Datajack Impact Weapon Heavy Flail Slashing Weapon Falx Build | -11 -10 -9 -9 -9 -8 -8 -8 -8 -7 -7 -7 -6 -5 -4 -4 -4 -3 -2 ------- Run | Yrd Mat Mat Min Exi Min Mat Gar Mat Fac Low Low Fac Fac Fac Upp Upp Res Res Slots Evolved 16 | . . 2 . . . 2 . . 2 . . 2 2 2 . . 2 2 Power 2 | . . . . . . . . . . . . . . 2 . . . . Propulsion 5 | . . 1 . . . 1 . . 1 . . . . . . . 1 1 Utility 7 | . . . . . . 1 . . . . . 2 2 . . . 1 1 Weapon 2 | . . 1 . . . . . . 1 . . . . . . . . . Parts Attached 245 | 7 11 21 . . . 11 7 15 10 15 1 26 6 8 5 10 34 58 Power 30 | 1 1 1 . . . . 1 1 1 4 . 2 . 1 1 . 6 10 Engine 13 | 1 1 1 . . . . 1 1 1 3 . 2 . . 1 . 1 . Core 2 | . . . . . . . . . . 1 . . . 1 . . . . Reactor 15 | . . . . . . . . . . . . . . . . . 5 10 Propulsion 64 | 2 5 9 . . . 1 1 2 1 3 . 6 1 4 . 2 13 14 Treads 23 | . 3 4 . . . 1 . 2 1 2 . 3 . . . . 3 4 Leg 27 | 2 . . . . . . . . . 1 . 2 1 4 . 2 5 10 Wheel 14 | . 2 5 . . . . 1 . . . . 1 . . . . 5 . Hover . | . . . . . . . . . . . . . . . . . . . Flight . | . . . . . . . . . . . . . . . . . . . Utility 66 | 2 3 1 . . . 1 4 4 3 3 1 12 4 1 2 1 8 16 Device 32 | 1 1 1 . . . . 1 1 . 1 . 6 4 1 1 . 3 11 Storage 9 | 1 2 . . . . . 2 1 . . . . . . . . 1 2 Processor 12 | . . . . . . 1 1 . . 1 . 3 . . 1 . 2 3 Hackware 3 | . . . . . . . . . 2 1 . . . . . . . . Protection 10 | . . . . . . . . 2 1 . 1 3 . . . 1 2 . Artifact . | . . . . . . . . . . . . . . . . . . . Weapon 85 | 2 2 10 . . . 9 1 8 5 5 . 6 1 2 2 7 7 18 Energy Gun 35 | 2 1 6 . . . 3 1 6 2 . . 4 . 1 1 5 2 1 Energy Cannon 10 | . . 1 . . . 1 . . . . . . . . . . 1 7 Ballistic Gun 19 | . 1 1 . . . 3 . . 1 3 . 1 . . 1 1 4 3 Ballistic Cannon 7 | . . . . . . . . . 1 1 . . . . . . . 5 Launcher 8 | . . 1 . . . 1 . 1 . . . 1 1 1 . 1 . 1 Special Weapon 2 | . . . . . . 1 . . . 1 . . . . . . . . Impact Weapon 3 | . . 1 . . . . . 1 1 . . . . . . . . . Slashing Weapon 1 | . . . . . . . . . . . . . . . . . . 1 Piercing Weapon . | . . . . . . . . . . . . . . . . . . . Special Melee Weapon . | . . . . . . . . . . . . . . . . . . . Unidentified Prototypes 21 | . . 2 . . . 2 . 3 1 . . 3 1 . . . 2 7 Corrupted Parts 7 | . . . . . . . . . . . . . . . . 4 3 . System Corruption 24 | . . . . . . . . . . . . . . . . 19 5 . Parts Lost 115 | . 4 3 . . . 3 2 4 2 13 1 3 1 . 4 20 15 40 Power 15 | . 1 . . . . . . 1 1 1 . . . . . 2 3 6 Propulsion 31 | . . . . . . . 1 1 . 6 . 2 1 . 1 5 5 9 Utility 23 | . 1 . . . . . . . . 2 1 . . . 2 4 1 12 Weapon 46 | . 2 3 . . . 3 1 2 1 4 . 1 . . 1 9 6 13 Highest Loss Streak 33 | . 2 2 . . . 1 1 2 1 4 1 1 1 . 2 18 12 33 To Critical Strikes 3 | . . . . . . . . . . . . . . . . . . 3 Average Backups 18 | 3 11 19 20 20 20 19 19 21 23 23 23 24 24 18 18 10 12 15 Power 1 | . . . . . . . 1 1 1 1 1 1 1 . . . 1 1 Propulsion 3 | 1 4 9 9 9 8 7 5 4 3 . . . 2 1 . . 1 3 Utility 7 | . 2 5 5 5 7 6 8 9 12 13 13 10 9 8 8 7 4 4 Weapon 6 | . 2 4 4 5 5 5 4 5 6 7 8 11 10 9 8 3 4 5 Tool/Special . | . . . . . . . . . . . . . . . . . . . Unused Backups 61 | . 2 8 . 2 . 1 3 4 1 . . 9 2 1 3 . 12 13 Power 5 | . . . . . . . 2 . . . . . . . . . 1 2 Propulsion 13 | . 1 3 . 2 . . 1 . . . . . 1 . . . 5 . Utility 22 | . 1 3 . . . 1 . . 1 . . 5 . 1 . . 3 7 Weapon 21 | . . 2 . . . . . 4 . . . 4 1 . 3 . 3 4 Tool/Special . | . . . . . . . . . . . . . . . . . . . Average Slot Usage (%) 93 | . 100 99 100 100 100 98 98 99 99 90 83 95 98 99 92 49 89 83 Engine 7 | . 14 11 11 11 11 9 9 9 7 6 7 6 5 10 10 5 2 . Reactor 2 | . . . . . . . . . . . . . . . . . 7 12 Treads 11 | . 17 12 11 11 11 18 17 13 15 21 15 19 17 . . . 7 . Leg 7 | . 7 . . . . . . . . 2 7 4 5 25 25 8 12 15 Wheel 9 | . 3 20 22 22 22 18 18 22 23 5 . 4 3 . . . 4 . Device 11 | . 14 11 11 11 11 9 9 9 5 1 . 10 22 21 18 3 10 18 Storage 8 | . 14 11 11 11 11 9 14 11 7 7 7 6 5 5 5 5 8 7 Processor 5 | . . . . . . 8 3 . . 6 1 8 5 5 5 10 9 11 Protection 2 | . . . . . . . . 5 5 3 4 4 5 5 3 . 4 . Energy Gun 14 | . 25 16 11 11 11 13 25 25 23 9 7 16 7 13 13 9 7 1 Energy Cannon 2 | . . 7 11 11 11 7 . . . . . . . . . . 1 9 Ballistic Gun 4 | . 2 8 6 . 8 4 . . 2 12 14 5 10 6 2 4 6 1 Ballistic Cannon 1 | . . . . . . . . . 2 4 7 . 1 . . . . 3 Peak Build Rating 183 | 7 12 22 22 21 22 31 34 34 40 39 32 54 66 87 90 92 121 183 Average Rating 60 | 5 8 19 21 21 21 26 31 30 38 34 31 45 60 85 81 42 96 162 On Entrance 40 | . 7 12 22 21 21 22 31 34 34 39 31 32 51 66 86 90 45 118 Avg Prop Armor Cover (%) 9 | . 14 9 9 9 9 14 13 9 11 3 4 6 15 . . . 10 16 Naked Turns . | . . . . . . . . . . . . . . . . . . . Heaviest Build 157 | 15 50 60 60 60 60 62 66 106 108 110 101 115 125 99 94 96 109 157 Greatest Support 240 | 20 40 60 24 24 24 24 24 36 36 80 40 80 60 95 96 56 115 240 Greatest Overweight (x) 19 | . 1 3 2 2 2 2 2 2 2 2 2 7 7 1 1 19 5 2 Average Overweight (x) 1 | . . 1 2 2 2 2 2 2 2 1 2 2 6 . . 2 1 . Largest Inventory Capacity 25 | 8 20 20 20 20 20 20 20 25 25 25 25 25 25 25 20 20 20 20 Average Capacity 21 | 7 14 20 20 20 20 20 20 22 25 25 25 25 25 20 20 20 20 19 Most Carried 25 | 6 17 20 20 20 20 20 20 25 25 25 24 25 25 24 20 18 20 20 Average Carried 19 | 3 11 19 19 19 20 19 19 21 23 23 23 24 24 19 19 10 13 18 Final Capacity 25 | 8 20 20 20 20 20 20 20 25 25 25 25 25 25 20 20 20 20 5 Final Carried 25 | 5 16 20 20 20 20 19 20 24 25 24 23 25 25 19 18 9 20 . Class Distribution -------------------- 23% | Skirmisher 21% | Gunner 21% | Scavenger-Tank 14% | Scavenger-Gunner 9% | Mutant 4% | Scavenger-Skirmisher 4% | Scavenger-Assassin Dominant Class ---------------- Mutant | -10/Materials Gunner | -9/Materials Gunner | -9/Mines Gunner | -9/Exiles Skirmisher | -8/Mines Skirmisher | -8/Materials Skirmisher | -8/Garrison Skirmisher | -8/Materials Skirmisher | -7/Factory Gunner | -7/Lower Caves Scavenger-Tank | -7/Lower Caves Scavenger-Skirmisher | -6/Factory Scavenger-Tank | -5/Factory Scavenger-Tank | -4/Factory Scavenger-Tank | -4/Upper Caves Scavenger-Gunner | -4/Upper Caves Scavenger-Gunner | -3/Research Scavenger-Tank | -2/Research Resources | -11 -10 -9 -9 -9 -8 -8 -8 -8 -7 -7 -7 -6 -5 -4 -4 -4 -3 -2 ----------- Run | Yrd Mat Mat Min Exi Min Mat Gar Mat Fac Low Low Fac Fac Fac Upp Upp Res Res Matter Collected 7352 | 152 372 697 35 . 27 179 506 315 133 709 15 421 197 . 634 276 468 2216 Remotely 296 | . . . . . . . . . . . . . . . . . . 296 Salvage Created 11666 | 48 557 997 29 . 84 271 957 791 291 1055 18 660 276 . 832 639 1176 2985 Parts 515 | 10 29 64 6 . 2 13 56 40 10 21 3 23 11 . 14 22 66 125 Haulers Intercepted 9 | . 1 3 . . . 2 . 2 . . . . . . . . . 1 Recyclers Shooed 11 | 1 1 1 . . . . . . . . . . . . . . 3 5 Parts Field Recycled . | . . . . . . . . . . . . . . . . . . . Retrieved Matter . | . . . . . . . . . . . . . . . . . . . Parts Self-Destructed 49 | . . . . . . . . . . 14 2 . . . 16 17 . . Prevented 7 | . . . . . . . . . . 2 . . . . . 5 . . Parts Restored . | . . . . . . . . . . . . . . . . . . . Kills | -11 -10 -9 -9 -9 -8 -8 -8 -8 -7 -7 -7 -6 -5 -4 -4 -4 -3 -2 ------- Run | Yrd Mat Mat Min Exi Min Mat Gar Mat Fac Low Low Fac Fac Fac Upp Upp Res Res Combat Hostiles Destroyed 203 | . 10 22 3 . 3 6 27 14 3 20 4 7 2 . 17 12 14 39 Melee 2 | . . . . . . . . . . . . . . . . . . 2 Guns 86 | . 10 11 . . . 1 14 6 2 15 . 7 2 . 8 3 6 1 Cannons 23 | . . 2 . . . 1 . . . 1 . . . . . . . 19 AOE 81 | . . 9 3 . 3 4 13 5 . 3 4 . . . 8 7 8 14 Classes Destroyed 16 | 1 6 3 . . . 1 1 . . 2 . . 1 . . 1 . . Worker 19 | . 2 1 . . . 2 . . . . . 2 . . . . 5 7 Builder 11 | . 1 . . . . . . . . . . . . . . . 5 5 Tunneler 4 | 3 1 . . . . . . . . . . . . . . . . . Hauler 9 | . 1 3 . . . 2 . 2 . . . . . . . . . 1 Recycler 15 | . 1 2 . . . . . 1 . . . 2 1 . . . 2 6 Mechanic 1 | . . . . . . . . . . . . . . . . 1 . . Operator 2 | . . 1 . . . . . . 1 . . . . . . . . . Watcher 9 | . . . . . . 1 . 2 3 . . 1 . . . . . 2 Swarmer 62 | . 3 10 3 . . 4 9 6 . 1 4 . . . 5 1 8 8 Grunt 66 | . 7 4 . . 3 1 15 6 2 8 . 3 . . 2 7 . 8 Brawler 4 | . . 1 . . . . . . . 2 . . . . 1 . . . Duelist 9 | . . . . . . . . . . 2 . . . . 3 3 . 1 Sentry 22 | . . 7 . . . 1 2 2 . 1 . 1 . . 2 1 . 5 Hunter 10 | . . . . . . . . . . . . . 2 . 2 . 3 3 Programmer 24 | . . . . . . . 1 . 1 . . 3 . . 2 . 3 14 Decomposer 6 | . . . . . . . . . . 4 . . . . 2 . . . Thug 4 | . . . . . . . . . . 4 . . . . . . . . Butcher 1 | . . . . . . . . . . 1 . . . . . . . . Mutant 1 | . . . . . . . . . . 1 . . . . . . . . Best Kill Streak 13 | 2 4 4 3 . 3 5 6 3 2 6 4 6 2 . 4 12 6 13 Combat Bots Only 11 | . 3 4 3 . 3 3 6 3 2 6 4 4 2 . 4 11 5 8 Max Kills in Single Turn 5 | 1 1 3 3 . 1 2 3 1 1 2 2 2 1 . 2 2 3 5 Gunslinging 1 | . . . . . . . 1 . . . . . . . . 1 . . Exploded 3 | . . 3 3 . 1 1 3 1 . 2 2 . . . 2 2 3 3 Melee 1 | . . . . . . . . . . . . . . . . . . 1 Uniques/NPCs Destroyed . | . . . . . . . . . . . . . . . . . . . Combat | -11 -10 -9 -9 -9 -8 -8 -8 -8 -7 -7 -7 -6 -5 -4 -4 -4 -3 -2 -------- Run | Yrd Mat Mat Min Exi Min Mat Gar Mat Fac Low Low Fac Fac Fac Upp Upp Res Res Hostile Shots Fired 1586 | . 69 73 6 . 2 26 53 34 9 98 22 43 18 13 96 189 195 640 Missed 434 | . 18 23 2 . 1 9 16 8 1 27 7 13 5 5 30 48 52 169 Hits 1152 | . 51 50 4 . 1 17 37 26 8 71 15 30 13 8 66 141 143 471 Melee 23 | . . 1 . . . . . . . 7 . . . . 2 13 . . Projectile 1129 | . 51 49 4 . 1 17 37 26 8 64 15 30 13 8 64 128 143 471 Critical Strikes 60 | . 1 4 . . . . 1 . . 5 . . . . 5 9 10 25 Part Disruptions 2 | . . . . . . . . . . . . . . . . . 1 1 Damage Taken 22617 | . 669 632 29 . 19 231 519 477 221 1727 247 389 92 48 971 2978 2751 10617 Core 2961 | . 116 119 . . . . 40 22 32 177 59 53 11 . 124 439 301 1468 Absorbed by Shields 1202 | . . . . . . . . . . . . . 66 41 297 121 48 629 Redirected to Shielding 212 | . . . . . . . . . . . . . . . . . 212 . Ignored by Resistances 256 | . . . . . . . . . . . . . 47 27 127 55 . . Regen/Repaired (Parts) 80 | . . . . . . . . 80 . . . . . . . . . . Core Remaining (%) 76 | 100 53 . . . 70 . . 88 . . 61 93 98 . . 51 76 . Volleys Fired 544 | 7 53 58 1 . 4 20 50 28 12 45 6 30 6 2 38 26 53 105 Largest 4 | 2 2 3 1 . 1 3 3 3 4 4 1 4 4 4 4 4 4 4 Hottest 470 | 100 100 198 30 . 30 189 150 156 205 183 30 235 170 170 204 215 240 470 Shots Fired 1388 | 14 104 150 1 . 4 47 97 75 44 141 6 86 21 8 107 58 135 290 Gun 959 | 14 104 116 . . . 24 82 67 40 114 . 79 20 8 96 47 103 45 Cannon 329 | . . 28 . . . 16 . 5 4 19 . 7 1 . . . 18 231 Launcher 97 | . . 6 1 . 4 7 15 3 . 5 6 . . . 11 11 14 14 Special 3 | . . . . . . . . . . 3 . . . . . . . . Kinetic 371 | . 19 40 . . . 10 . . 8 69 . 24 11 4 10 19 48 109 Thermal 659 | 14 85 64 . . . 23 . . 9 49 . 61 10 4 86 21 66 167 Explosive 83 | . . 6 1 . 4 7 15 3 . 5 6 . . . 11 11 . 14 Electromagnetic 272 | . . 40 . . . 7 82 72 27 15 . 1 . . . 7 21 . Robot Hit Streak 40 | 7 17 13 . . 6 9 22 23 10 16 . 12 10 . 13 40 19 28 Robot Miss Streak 11 | 2 3 3 . . . 2 1 4 4 2 4 3 2 . 2 2 4 11 Penetration Max 1 | . . . . . . . . . . . . . . . 1 . 1 . Secondary Targets 11 | . . . . . . . 3 1 . 1 . . . . 3 3 . . Max Gunslinging Chain 1 | . . . . . . . 1 1 . 1 . . . . 1 1 . . Shots Hit Robots 863 | 10 79 91 . . 3 30 58 54 32 84 . 47 15 . 79 52 75 154 Core Hits 557 | 4 28 41 3 . 8 17 69 32 13 47 8 34 8 . 43 43 61 98 Critical Kills 4 | . . . . . . . . . . 1 . . . . . . . 3 Critical Parts Destroyed 1 | . . . . . . . . . . . . . . . . 1 . . Critical Strikes 32 | . 5 3 . . . . . . . 2 . 3 1 . 3 2 1 12 Burn 16 | . 5 1 . . . . . . . 1 . 3 1 . 3 1 1 . Meltdown 3 | . . . . . . . . . . . . . . . . . . 3 Destroy 2 | . . 1 . . . . . . . 1 . . . . . . . . Blast 7 | . . . . . . . . . . . . . . . . . . 7 Corrupt 1 | . . 1 . . . . . . . . . . . . . . . . Smash 1 | . . . . . . . . . . . . . . . . 1 . . Sever 2 | . . . . . . . . . . . . . . . . . . 2 Melee Attacks 61 | . . . . . . 4 . 7 5 6 . 13 4 . . 6 . 16 Impact 45 | . . . . . . 4 . 7 5 6 . 13 4 . . 6 . . Slashing 16 | . . . . . . . . . . . . . . . . . . 16 Piercing . | . . . . . . . . . . . . . . . . . . . Sneak Attacks 1 | . . . . . . 1 . . . . . . . . . . . . Combat Hostiles . | . . . . . . . . . . . . . . . . . . . Follow-up Attacks . | . . . . . . . . . . . . . . . . . . . Damage Inflicted 29536 | 124 950 2042 99 . 253 906 1783 1443 768 2298 465 1129 275 . 2516 2298 2823 9364 Guns 12381 | 124 947 1120 . . . 238 849 1032 704 1291 . 1108 275 . 1523 850 1429 891 Cannons 5767 | . . 287 . . . 253 . 38 64 167 . 21 . . . . 406 4531 Explosions 10614 | . . 609 99 . 253 317 934 366 . 764 465 . . . 993 1369 988 3457 Melee 690 | . . . . . . 97 . . . 67 . . . . . 79 . 447 Ramming 84 | . 3 26 . . . 1 . 7 . 9 . . . . . . . 38 Kinetic 4630 | . 133 316 . . . 93 . . 134 617 . 158 115 . 186 313 604 1961 Thermal 10926 | 124 814 713 . . . 288 80 211 153 909 . 971 160 . 1337 488 1217 3461 Explosive 9091 | . . 609 99 . 253 317 854 155 . 465 465 . . . 993 1285 139 3457 Electromagnetic 4115 | . . 378 . . . 110 849 1070 481 231 . . . . . 133 863 . Impact 243 | . . . . . . 97 . . . 67 . . . . . 79 . . Slashing 447 | . . . . . . . . . . . . . . . . . . 447 Piercing . | . . . . . . . . . . . . . . . . . . . Highest Corruption 28 | . . 2 2 2 2 . . 6 . 4 4 2 . . 2 21 21 28 Average Corruption 5 | . . 2 2 2 2 . . 4 . 4 4 1 . . 1 10 12 7 Corruption Purged . | . . . . . . . . . . . . . . . . . . . Corruption Blocked . | . . . . . . . . . . . . . . . . . . . Effects 172 | . . 9 7 6 4 . . 20 . 24 1 2 . . 9 7 35 48 Message Errors 31 | . . 1 2 3 . . . 2 . 6 . 1 . . 2 1 5 8 Matter Fused 42 | . . 1 2 1 . . . 4 . 6 1 . . . 4 2 8 13 Heat Flow Errors 15 | . . 1 . 1 . . . 1 . 2 . . . . . . 5 5 Energy Discharges 21 | . . 2 2 . 1 . . 2 . 2 . . . . 1 . 4 7 Parts Rejected 1 | . . . . . . . . 1 . . . . . . . . . . Parts Fused 3 | . . . . 1 . . . 1 . . . . . . . . 1 . Data Loss (minor) 25 | . . 2 1 . 2 . . 4 . 3 . 1 . . 1 3 4 4 Data Loss (major) 9 | . . 1 . . . . . 3 . . . . . . . . 2 3 Misfires 12 | . . . . . . . . . . 5 . . . . . . 3 4 Alerts 5 | . . . . . 1 . . 1 . . . . . . 1 . 1 1 Misdirections 1 | . . . . . . . . . . . . . . . . . 1 . Weapon Failures 7 | . . 1 . . . . . 1 . . . . . . . 1 1 3 Overload Shots . | . . . . . . . . . . . . . . . . . . . Overflow Damage 853 | . . 31 . . . 99 10 14 22 22 1 . . . 47 112 24 471 Projectiles 299 | . . 18 . . . 5 . 3 . . . . . . . . 20 253 Explosions 416 | . . 13 . . . 12 10 11 22 17 1 . . . 47 61 4 218 Melee 138 | . . . . . . 82 . . . 5 . . . . . 51 . . Knockbacks 14 | . . 1 . . . . . . . 2 . . . . . 1 . 10 Impact 3 | . . 1 . . . . . . . . . . . . . 1 . 1 Kinetic 10 | . . . . . . . . . . 1 . . . . . . . 9 Secondary 1 | . . . . . . . . . . 1 . . . . . . . . Self-Inflicted Damage 1038 | . . 12 . . . 29 13 133 46 275 25 . . . 44 155 178 128 Shots 31 | . . . . . . 2 1 4 1 7 1 . . . 3 3 6 3 Rammed 6 | . . 3 . . . 1 . 1 . 1 . . . . . . . . Targets Rammed 10 | . 1 3 . . . 1 . 1 . 1 . . . . . . . 3 Kicked 4 | . 1 . . . . . . . . . . . . . . . . 3 Crushed . | . . . . . . . . . . . . . . . . . . . Highest Temperature 611 | 117 316 174 . 158 . 206 36 137 252 611 . 434 . 90 246 126 442 569 Average Temperature 105 | 43 75 46 . 92 . 36 13 26 118 159 . 116 . 48 85 50 123 146 Received Heat Transfer 2467 | . 330 249 . . 9 36 189 117 18 522 . 114 . . 99 583 . 201 Effects 47 | . 2 . . . . . . . 4 18 . 4 . . . . 2 17 Shutdowns 10 | . 1 . . . . . . . . . . . . . . . 2 7 Energy Bleed 5 | . . . . . . . . . . 1 . . . . . . . 4 Interference 12 | . 1 . . . . . . . 4 2 . 3 . . . . . 2 Matter Decay 3 | . . . . . . . . . . 2 . . . . . . . 1 Short Circuit 3 | . . . . . . . . . . 2 . 1 . . . . . . Damage (minor) 1 | . . . . . . . . . . . . . . . . . . 1 Damage (major) 13 | . . . . . . . . . . 11 . . . . . . . 2 Siege Activations . | . . . . . . . . . . . . . . . . . . . Martial Activations . | . . . . . . . . . . . . . . . . . . . Shielding Activations . | . . . . . . . . . . . . . . . . . . . Robots Disrupted 4 | . . . . . . . 1 . . . . . . . . . 3 . Combat Hostiles 3 | . . . . . . . 1 . . . . . . . . . 2 . Robots Corrupted 7 | . . . . . . . . 3 1 2 . . . . . 1 . . Combat Hostiles 6 | . . . . . . . . 3 1 1 . . . . . 1 . . Parts Fried 27 | . . 3 . . . . 6 6 2 2 . . . . . . 8 . Impact Corruptions 5 | . . . . . . 1 . . . 2 . . . . . 2 . . Robots Melted 5 | . . . . . . . . . . . . . . . 1 1 . 3 Combat Hostiles 5 | . . . . . . . . . . . . . . . 1 1 . 3 Parts Melted 43 | . 9 1 . . . 2 . . . . . 5 2 . 9 4 4 7 Heat Transferred 18094 | 370 2775 1591 . . . 592 100 200 222 1595 . 2136 370 . 2553 814 1853 2923 Parts Sabotaged . | . . . . . . . . . . . . . . . . . . . Parts Stolen . | . . . . . . . . . . . . . . . . . . . Parts Stripped . | . . . . . . . . . . . . . . . . . . . Power Chain Reactions 15 | . . . . . . . 2 4 1 4 . . . . . 1 3 . Alert | -11 -10 -9 -9 -9 -8 -8 -8 -8 -7 -7 -7 -6 -5 -4 -4 -4 -3 -2 ------- Run | Yrd Mat Mat Min Exi Min Mat Gar Mat Fac Low Low Fac Fac Fac Upp Upp Res Res Maximum Alert Level 4 | . . 1 . . . . 3 2 . . . . . . . . 1 4 Low Security (%) 64 | 100 100 61 100 . 100 100 8 . 100 . . 100 100 100 . . 87 32 Level 1 17 | . . 38 . . . . 20 40 . . . . . . . . 12 38 Level 2 10 | . . . . . . . 41 59 . . . . . . . . . 6 Level 3 3 | . . . . . . . 30 . . . . . . . . . . 6 Level 4 3 | . . . . . . . . . . . . . . . . . . 16 Level 5 . | . . . . . . . . . . . . . . . . . . . High Security . | . . . . . . . . . . . . . . . . . . . Max Security . | . . . . . . . . . . . . . . . . . . . Peak Influence 1198 | 5 70 268 95 . 101 96 804 493 197 . . 99 50 15 . . 232 1198 Initial 391 | . . 11 95 . . 35 46 391 177 . . 63 24 2 . . . 21 Average 194 | . 18 159 46 . 9 26 514 396 70 . . 24 7 . . . 87 409 Influence Increases 6748 | 15 298 659 74 . 101 227 778 527 130 375 90 268 63 19 380 265 577 1902 Destroy 0b10 Robot/C 3964 | . 200 440 60 . 60 120 524 280 60 280 80 140 40 . 340 240 320 780 Destroy 0b10 Robot/NC 350 | 15 30 35 . . . 25 . 25 20 . . 25 5 . . 5 60 105 Destroy Leader 736 | . 52 136 10 . 10 26 20 78 26 20 10 52 10 . 40 20 40 186 Allied During Kill 17 | . . . . . . . . . . . . . . . . . 17 . Successful Hack 10 | . . . . . . . . . . . . 6 . 4 . . . . Disable Machine 225 | . . 15 . . 15 . . 90 15 . . 15 . 15 . . 15 45 Anti-Garrison Action 180 | . . . . . . . 180 . . . . . . . . . . . Destroy Structure 1041 | . 1 33 4 . 16 56 39 24 9 . . 15 8 . . . 80 756 Lose Combat Pursuer 225 | . 15 . . . . . 15 30 . 75 . 15 . . . . 45 30 Influence Decreases 5732 | 15 271 441 305 14 10 246 46 939 517 292 77 318 107 26 380 265 538 925 Entered New Map 998 | . . 16 150 14 . 56 26 413 215 3 17 38 27 5 . . . 18 Time Decay 3747 | 15 256 395 155 . 10 170 . 486 282 251 50 264 80 21 340 95 370 507 Lost Part 952 | . 15 30 . . . 20 20 40 20 38 10 1 . . 40 170 148 400 Lost Ally 35 | . . . . . . . . . . . . 15 . . . . 20 . Squads Dispatched 34 | . 1 2 . . . 1 . 1 3 . . 5 1 1 . 1 6 12 Investigation 5 | . . 1 . . . . . . 1 . . 1 . . . . 2 . Extermination 15 | . . . . . . . . . 2 . . 3 . 1 . . 2 7 Reinforcement 12 | . 1 1 . . . 1 . 1 . . . 1 1 . . . 2 4 Assault 2 | . . . . . . . . . . . . . . . . 1 . 1 Garrison . | . . . . . . . . . . . . . . . . . . . Intercept . | . . . . . . . . . . . . . . . . . . . Searches Triggered . | . . . . . . . . . . . . . . . . . . . Construction Impeded 4 | . . . . . . 1 . . . . . . . . . . 1 2 Haulers Reinforced 1 | . . . . . . . . . . . . . . . . . 1 . Active Scanning Responses . | . . . . . . . . . . . . . . . . . . . Cargo Convoy Interrupts . | . . . . . . . . . . . . . . . . . . . Stealth | -11 -10 -9 -9 -9 -8 -8 -8 -8 -7 -7 -7 -6 -5 -4 -4 -4 -3 -2 --------- Run | Yrd Mat Mat Min Exi Min Mat Gar Mat Fac Low Low Fac Fac Fac Upp Upp Res Res Distress Signals 15 | . . 3 . . . 3 . 2 . . . . . . . . 3 4 Communications Jammed . | . . . . . . . . . . . . . . . . . . . Distress Signals . | . . . . . . . . . . . . . . . . . . . Times Spotted 287 | . 18 34 3 . 2 15 23 21 7 27 4 13 2 5 17 16 20 60 Peak Tracking Total 10 | . 4 6 3 . 3 5 5 4 2 9 4 3 3 5 5 10 7 9 Tactical Retreats 22 | . 1 . . . . . 1 1 . 4 . 1 . . . . 4 10 ECM-based Alert Blocks 22 | . . . . . . . . . . . . . . . . . 9 13 Traps | -11 -10 -9 -9 -9 -8 -8 -8 -8 -7 -7 -7 -6 -5 -4 -4 -4 -3 -2 ------- Run | Yrd Mat Mat Min Exi Min Mat Gar Mat Fac Low Low Fac Fac Fac Upp Upp Res Res Traps Triggered 13 | . 2 1 . . . . 5 2 1 . . . . . . . . 2 Indirectly . | . . . . . . . . . . . . . . . . . . . Trap Hack Attempts . | . . . . . . . . . . . . . . . . . . . Triggered . | . . . . . . . . . . . . . . . . . . . Disarmed . | . . . . . . . . . . . . . . . . . . . Reprogrammed . | . . . . . . . . . . . . . . . . . . . Reused . | . . . . . . . . . . . . . . . . . . . Traps Extracted . | . . . . . . . . . . . . . . . . . . . Installed . | . . . . . . . . . . . . . . . . . . . Triggered . | . . . . . . . . . . . . . . . . . . . Machines | -11 -10 -9 -9 -9 -8 -8 -8 -8 -7 -7 -7 -6 -5 -4 -4 -4 -3 -2 ---------- Run | Yrd Mat Mat Min Exi Min Mat Gar Mat Fac Low Low Fac Fac Fac Upp Upp Res Res Machines Disabled 20 | . . 1 . . 1 . 4 6 1 . . 1 . 1 . 1 1 3 Max in Single Turn 2 | . . 1 . . 1 . 1 2 1 . . 1 . 1 . 1 1 1 Garrison Access 2 | . . . . . . . . 1 1 . . . . . . . . . Garrison Relay 4 | . . . . . . . 4 . . . . . . . . . . . Machines Repaired . | . . . . . . . . . . . . . . . . . . . Machines Dismantled . | . . . . . . . . . . . . . . . . . . . Machines Sabotaged . | . . . . . . . . . . . . . . . . . . . Overloaded Fab Kills . | . . . . . . . . . . . . . . . . . . . Hacking | -11 -10 -9 -9 -9 -8 -8 -8 -8 -7 -7 -7 -6 -5 -4 -4 -4 -3 -2 --------- Run | Yrd Mat Mat Min Exi Min Mat Gar Mat Fac Low Low Fac Fac Fac Upp Upp Res Res Machines Accessed 17 | . . 2 . 1 . 1 . 2 2 1 . 4 . 3 1 . . . Terminals 7 | . . 1 . . . . . . 1 . . 3 . 2 . . . . Fabricators 2 | . . . . . . . . . . . . 1 . 1 . . . . Repair Stations 1 | . . . . . . . . 1 . . . . . . . . . . Recycling Units . | . . . . . . . . . . . . . . . . . . . Scanalyzers 1 | . . 1 . . . . . . . . . . . . . . . . Garrison Access 3 | . . . . . . 1 . 1 1 . . . . . . . . . Total Hacks 35 | . . 3 . 1 . 1 . 7 4 1 . 12 . 5 1 . . . Successful 24 | . . 2 . 1 . 1 . 6 2 1 . 7 . 3 1 . . . Failed 11 | . . 1 . . . . . 1 2 . . 5 . 2 . . . . Catastrophic 2 | . . . . . . . . . 1 . . 1 . . . . . . Database Lockouts . | . . . . . . . . . . . . . . . . . . . Manual 5 | . . 1 . 1 . . . . 1 . . 1 . 1 . . . . Terminals 17 | . . 1 . . . . . . 2 . . 10 . 4 . . . . Fabricators 3 | . . . . . . . . . . . . 2 . 1 . . . . Repair Stations 6 | . . . . . . . . 6 . . . . . . . . . . Recycling Units . | . . . . . . . . . . . . . . . . . . . Scanalyzers 2 | . . 2 . . . . . . . . . . . . . . . . Garrison Access 4 | . . . . . . 1 . 1 2 . . . . . . . . . Terminal Hacks 10 | . . . . 1 . . . . . 1 . 5 . 2 1 . . . Record 7 | . . . . . . . . . . . . 5 . 2 . . . . Open Door 2 | . . . . . . . . . . 1 . . . . 1 . . . Proto ID Catalog 1 | . . . . 1 . . . . . . . . . . . . . . Fabricator Hacks 3 | . . . . . . . . . . . . 2 . 1 . . . . Network Status 2 | . . . . . . . . . . . . 1 . 1 . . . . Build 1 | . . . . . . . . . . . . 1 . . . . . . Repair Station Hacks 5 | . . . . . . . . 5 . . . . . . . . . . Scan Component 3 | . . . . . . . . 3 . . . . . . . . . . Repair 2 | . . . . . . . . 2 . . . . . . . . . . Recycling Unit Hacks . | . . . . . . . . . . . . . . . . . . . Scanalyzer 2 | . . 2 . . . . . . . . . . . . . . . . Retrieve Study 2 | . . 2 . . . . . . . . . . . . . . . . Garrison Access Hacks 4 | . . . . . . 1 . 1 2 . . . . . . . . . Unlock Access 1 | . . . . . . 1 . . . . . . . . . . . . Seal Access 2 | . . . . . . . . 1 1 . . . . . . . . . Coupler Status 1 | . . . . . . . . . 1 . . . . . . . . . Unauthorized Hacks . | . . . . . . . . . . . . . . . . . . . Terminals . | . . . . . . . . . . . . . . . . . . . Fabricators . | . . . . . . . . . . . . . . . . . . . Repair Stations . | . . . . . . . . . . . . . . . . . . . Recycling Units . | . . . . . . . . . . . . . . . . . . . Scanalyzers . | . . . . . . . . . . . . . . . . . . . Garrison Access . | . . . . . . . . . . . . . . . . . . . Data Cores Recovered . | . . . . . . . . . . . . . . . . . . . Used . | . . . . . . . . . . . . . . . . . . . Hacking Detections 8 | . . . . . . . . 1 3 . . 3 . 1 . . . . Full Trace Events 2 | . . . . . . . . . 1 . . 1 . . . . . . Feedback Events 1 | . . . . . . . . . . . . 1 . . . . . . Corruption 1 | . . . . . . . . . . . . 1 . . . . . . Feedback Blocked . | . . . . . . . . . . . . . . . . . . . Robot Schematics Acquired . | . . . . . . . . . . . . . . . . . . . Robots Built 2 | . . . . . . . . . . . . 2 . . . . . . Authchips . | . . . . . . . . . . . . . . . . . . . Time 152 | . . . . . . . . . . . . 152 . . . . . . Total Robot Build Rating 10 | . . . . . . . . . . . . 10 . . . . . . Part Schematics Acquired . | . . . . . . . . . . . . . . . . . . . Parts Built . | . . . . . . . . . . . . . . . . . . . Authchips . | . . . . . . . . . . . . . . . . . . . Time . | . . . . . . . . . . . . . . . . . . . Total Part Build Rating . | . . . . . . . . . . . . . . . . . . . Part Studies Acquired 2 | . . 2 . . . . . . . . . . . . . . . . Parts Repaired 2 | . . . . . . . . 2 . . . . . . . . . . Time 58 | . . . . . . . . 58 . . . . . . . . . . Parts Recycled . | . . . . . . . . . . . . . . . . . . . Recycled Matter . | . . . . . . . . . . . . . . . . . . . Retrieved Matter . | . . . . . . . . . . . . . . . . . . . Retrieved Components . | . . . . . . . . . . . . . . . . . . . Parts Scanalyzed . | . . . . . . . . . . . . . . . . . . . Part Schematics Acquired . | . . . . . . . . . . . . . . . . . . . Parts Damaged . | . . . . . . . . . . . . . . . . . . . Bothacking | -11 -10 -9 -9 -9 -8 -8 -8 -8 -7 -7 -7 -6 -5 -4 -4 -4 -3 -2 ------------ Run | Yrd Mat Mat Min Exi Min Mat Gar Mat Fac Low Low Fac Fac Fac Upp Upp Res Res Used RIF Installer 1 | . . . . . . . 1 . . . . . . . . . . . Robots Hacked 1 | . . . . . . . . . . 1 . . . . . . . . Non-combat . | . . . . . . . . . . . . . . . . . . . Combat 1 | . . . . . . . . . . 1 . . . . . . . . Robot Hacks Applied 3 | . . . . . . . . . . 3 . . . . . . . . parse_system 1 | . . . . . . . . . . 1 . . . . . . . . amplify_resonance 1 | . . . . . . . . . . 1 . . . . . . . . overwrite_iff 1 | . . . . . . . . . . 1 . . . . . . . . Relay Couplers Released 20 | . . . . . . . 20 . . . . . . . . . . . Machine Destruction 16 | . . . . . . . 16 . . . . . . . . . . . Programmers 4 | . . . . . . . 4 . . . . . . . . . . . Attached 1 | . . . . . . . . . . 1 . . . . . . . . Fabnet Peak Effective % . | . . . . . . . . . . . . . . . . . . . Robots Rewired 5 | . . . . . . . . . . 3 . . . . . 2 . . Allies Hacked . | . . . . . . . . . . . . . . . . . . . Hacks Repelled . | . . . . . . . . . . . . . . . . . . . Allies | -11 -10 -9 -9 -9 -8 -8 -8 -8 -7 -7 -7 -6 -5 -4 -4 -4 -3 -2 -------- Run | Yrd Mat Mat Min Exi Min Mat Gar Mat Fac Low Low Fac Fac Fac Upp Upp Res Res Total Allies 9 | . . . 1 . . . . . . 4 . 2 . . . 2 . . Largest Group 2 | . . . 1 . . . . . . 2 . 2 . . . 2 1 . Highest-Rated Group 77 | . . . 31 . . . . . . 36 . 40 . . . 77 47 . Highest-Rated Ally 47 | . . . 31 . . . . . . 31 . 20 . . . 47 47 . Total Orders . | . . . . . . . . . . . . . . . . . . . Ally Attacks 19 | . . . . . . . . . . 7 . . . . . . 12 . Total Damage 463 | . . . . . . . . . . 95 . . . . . . 368 . Kills 2 | . . . . . . . . . . . . . . . . . 2 . Allies Corrupted . | . . . . . . . . . . . . . . . . . . . Allies Melted . | . . . . . . . . . . . . . . . . . . . Intel | -11 -10 -9 -9 -9 -8 -8 -8 -8 -7 -7 -7 -6 -5 -4 -4 -4 -3 -2 ------- Run | Yrd Mat Mat Min Exi Min Mat Gar Mat Fac Low Low Fac Fac Fac Upp Upp Res Res Active Infowar (turns) 4081 | 11 811 . . . . . . . . . . 699 1 . . . 411 2148 Sensors 2 | . . . . . . . . . . . . 2 . . . . . . Terrain 697 | . . . . . . . . . . . . 697 . . . . . . Seismic 822 | 11 811 . . . . . . . . . . . . . . . . . T.N.C. 2 | . . . . . . . . . . . . . . . . . . 2 ECM 2560 | . . . . . . . . . . . . . 1 . . . 411 2148 Robot Analysis Total . | . . . . . . . . . . . . . . . . . . . Derelict Logs Recovered 3 | . . . 1 . . . . . . 2 . . . . . . . . Drone Launches . | . . . . . . . . . . . . . . . . . . . Drone Recoveries . | . . . . . . . . . . . . . . . . . . . Exploration | -11 -10 -9 -9 -9 -8 -8 -8 -8 -7 -7 -7 -6 -5 -4 -4 -4 -3 -2 ------------- Run | Yrd Mat Mat Min Exi Min Mat Gar Mat Fac Low Low Fac Fac Fac Upp Upp Res Res Turns Passed 15923 | 129 973 1076 331 523 185 498 1128 1260 858 1282 112 1693 555 549 1030 277 1092 2372 Spaces Moved 8426 | 88 451 625 261 433 144 287 690 679 532 498 41 698 215 231 646 59 497 1351 Core 27 | 22 . . . . . . . . . . . . . . . 4 . 1 Treads 1321 | . 144 50 . . . . . . . 478 41 503 39 . . . 58 8 Legs 2698 | 66 154 . . . . . . . . . . . . 231 646 55 236 1310 Wheels 4380 | . 153 575 261 433 144 287 690 679 532 20 . 195 176 . . . 203 32 Hover . | . . . . . . . . . . . . . . . . . . . Flight . | . . . . . . . . . . . . . . . . . . . Fastest Speed 50 | 50 100 105 120 120 120 120 120 120 120 120 240 180 195 120 120 190 116 100 Average Speed 140 | 102 152 121 120 120 120 120 120 120 120 210 240 203 208 162 121 244 151 120 Slowest Speed 1000 | 120 240 160 120 120 120 120 120 120 120 240 240 285 269 190 190 1000 260 250 Overloaded Moves . | . . . . . . . . . . . . . . . . . . . Propulsion Burnouts . | . . . . . . . . . . . . . . . . . . . Robots Hopped . | . . . . . . . . . . . . . . . . . . . Potential Cave-ins 1 | . . . . . . . . . . . . . . . . . . 1 Cave-ins Triggered . | . . . . . . . . . . . . . . . . . . . Exploration Rate (%) 34 | 5 75 63 53 62 20 27 62 56 13 55 13 14 4 7 69 9 10 36 Regions Visited 18 Branch Regions 7 Pre-discovered Areas 1 | . . . 1 . . . . . . . . . . . . . . . Known Exits Taken 3 | . . . . . . 1 . . . 1 . . . . . . 1 . Unknown Exits Taken 14 | 1 1 1 1 1 1 . . 1 1 . 1 1 1 1 1 1 . . Scrap Searched 6 | . . . 2 . . . . . . 2 . . . . 2 . . . Spaces Dug 75 | . . . . . . 3 8 5 3 . . 13 4 . . . 5 34 Terrain Destroyed 751 | . . 29 4 . 26 55 32 24 9 52 27 13 4 . 95 66 37 278 Melee 28 | . . . . . . 3 . 5 3 . . 13 4 . . . . . Projectile 123 | . . . . . . . . . 1 7 . . . . 1 1 9 104 AOE 600 | . . 29 4 . 26 52 32 19 5 45 27 . . . 94 65 28 174 Terrain Rammed . | . . . . . . . . . . . . . . . . . . . Walls Destroyed . | . . . . . . . . . . . . . . . . . . . Machines Disabled . | . . . . . . . . . . . . . . . . . . . Actions | -11 -10 -9 -9 -9 -8 -8 -8 -8 -7 -7 -7 -6 -5 -4 -4 -4 -3 -2 --------- Run | Yrd Mat Mat Min Exi Min Mat Gar Mat Fac Low Low Fac Fac Fac Upp Upp Res Res Total 11345 | 113 636 820 278 437 150 395 903 1047 715 634 49 893 307 399 817 140 742 1870 Wait 1331 | . 89 58 12 . . 38 80 271 140 16 . 59 51 146 110 . 72 189 Move 8409 | 87 450 624 260 432 143 287 689 678 531 497 40 697 214 230 645 58 496 1351 Hop . | . . . . . . . . . . . . . . . . . . . Pick Up 288 | 12 21 22 2 2 . 12 14 21 9 12 . 29 12 2 8 7 52 51 Fast Attach 45 | . . 7 . . . 4 1 4 . 2 . 8 1 . 1 . . 17 Attach 164 | 7 4 5 . . . 8 3 5 7 14 1 11 3 2 6 15 33 40 Detach 15 | . . . . . . 1 . . 1 2 . 1 . . 2 . 5 3 Swap 174 | . 11 21 1 . 3 8 16 20 6 10 2 15 6 10 1 . 14 30 Drop 212 | . 7 22 2 2 . 12 10 12 4 5 . 30 10 7 6 1 17 65 Fire 544 | 7 53 58 1 . 4 20 50 28 12 45 6 30 6 2 38 26 53 105 Melee 61 | . . . . . . 4 . 7 5 6 . 13 4 . . 6 . 16 Ram 5 | . . 3 . . . 1 . 1 . . . . . . . . . . Kick 4 | . 1 . . . . . . . . . . . . . . . . 3 Crush 1 | . . . . . . . . . . 1 . . . . . . . . Escape Stasis 40 | . . . . . . . 40 . . . . . . . . . . . Rewire 52 | . . . . 1 . . . . . 24 . . . . . 27 . . Trap . | . . . . . . . . . . . . . . . . . . . Miscellaneous . | . . . . . . . . . . . . . . . . . . . Route ------- -11/Scrapyard -10/Materials (discovered 5 exits: *Mat x2 / [*Min x2] / [*Sub]) -9/Materials (discovered 3 exits: *Mat x2 / [*Min]) -9/Mines (discovered 2 exits: *Mat / *Exi) -9/Exiles (discovered 2 exits: [*Min x2]) -8/Mines -8/Materials -8/Garrison (discovered 2 exits: *Mat x2) -8/Materials (discovered 2 exits: *Fac x2) -7/Factory -7/Lower Caves -7/Lower Caves -6/Factory -5/Factory -4/Factory -4/Upper Caves -4/Upper Caves -3/Research -2/Research (discovered 2 exits: *Acc / *Tes) History --------- Turn | Location | Event 2 | -11/Scrapyard | Met Revision 17 7 | -11/Scrapyard | Discovered new exit (range 16) 130 | -11/Scrapyard | Entered Materials 286 | -10/Materials | Discovered new exit (range 8) 311 | -10/Materials | Build established: Mutant 398 | -10/Materials | Discovered new exit (range 14) 736 | -10/Materials | Discovered new exit (range 13) 745 | -10/Materials | Discovered new exit (range 5) 881 | -10/Materials | Discovered new exit (range 5) 1103 | -10/Materials | Entered another Materials area 1103 | -9/Materials | Evolved 2 slots: Propulsion x1, Weapon x1 1440 | -9/Materials | Build established: Gunner 1623 | -9/Materials | Discovered new exit (range 6) 1747 | -9/Materials | Discovered new exit (range 12) 1879 | -9/Materials | Discovered new exit (range 8) 2179 | -9/Materials | Entered Mines 2206 | -9/Mines | Learned 2 Materials zone layouts 2347 | -9/Mines | Discovered new exit (range 15) 2386 | -9/Mines | Escorted by a lone wolf Derelict 2406 | -9/Mines | Learned location of Storage (-7) 2504 | -9/Mines | Deemed a non-threat by the Exiles lab entrance 2504 | -9/Mines | Discovered new exit (range 5) 2510 | -9/Mines | Entered Exiles 2510 | -9/Exiles | Accompanied by 1 ally 2530 | -9/Exiles | Discovered new exit (range 15) 2546 | -9/Exiles | Met 8R-AWN 2567 | -9/Exiles | Met EX-HEX 2624 | -9/Exiles | Met EX-DEC 2721 | -9/Exiles | Discovered new exit (range 15) 2819 | -9/Exiles | Met EX-BIN 2836 | -9/Exiles | Aligned with FarCom system 2837 | -9/Exiles | Given EX-Vault access code 2880 | -9/Exiles | Opened EX-Vault 2892 | -9/Exiles | Found 0b10 Alert Chip 2919 | -9/Exiles | Warned to stay clear of 0b10 Research branches 3033 | -9/Exiles | Left Exiles lab with 0b10 Alert Chip 3033 | -9/Exiles | Entered Mines 3196 | -8/Mines | Discovered new exit (range 12) 3218 | -8/Mines | Entered Materials 3218 | -8/Materials | Evolved 2 slots: Propulsion x1, Utility x1 3337 | -8/Materials | Build established: Skirmisher 3716 | -8/Materials | Identified exit to Garrison 3716 | -8/Materials | Entered Garrison 3756 | -8/Garrison | Triggered checkpoint 3790 | -8/Garrison | Garrison Relay disabled 3938 | -8/Garrison | Triggered checkpoint 3970 | -8/Garrison | Triggered checkpoint 4019 | -8/Garrison | Triggered checkpoint 4160 | -8/Garrison | Discovered new exit (range 12) 4208 | -8/Garrison | Triggered checkpoint 4244 | -8/Garrison | Garrison Relay disabled 4390 | -8/Garrison | Discovered new exit (range 10) 4418 | -8/Garrison | Triggered checkpoint 4452 | -8/Garrison | Triggered checkpoint 4503 | -8/Garrison | Garrison Relay disabled 4608 | -8/Garrison | Triggered checkpoint 4642 | -8/Garrison | Installed Relay Interface Framework 4672 | -8/Garrison | Garrison Relay disabled 4844 | -8/Garrison | Entered Materials 5131 | -8/Materials | Discovered new exit (range 8) 5349 | -8/Materials | Repaired Arm. Wheel 5376 | -8/Materials | Repaired Grenade Launcher 6080 | -8/Materials | Discovered new exit (range 5) 6104 | -8/Materials | Entered Factory 6104 | -7/Factory | Evolved 2 slots: Propulsion x1, Weapon x1 6790 | -7/Factory | Discovered new exit (range 7) 6962 | -7/Factory | Entered Lower Caves 6982 | -7/Lower Caves | Attracted the attention of an 0b10 outpost 7080 | -7/Lower Caves | Lost 3 parts (2n1u) 7315 | -7/Lower Caves | Build established: Gunner 7381 | -7/Lower Caves | Identified exit to Lower Caves 7558 | -7/Lower Caves | Lost 3 parts (2n1u) 7722 | -7/Lower Caves | Attacked by a faux Warlord 7757 | -7/Lower Caves | Lost 3 parts (3w) 7870 | -7/Lower Caves | Lost 4 parts (1p2n1w) 8124 | -7/Lower Caves | Learned Factory stockpile data 8165 | -7/Lower Caves | Build established: Scavenger-Gunner 8244 | -7/Lower Caves | Entered another Lower Caves area 8306 | -7/Lower Caves | Discovered new exit (range 14) 8356 | -7/Lower Caves | Entered Factory 8356 | -6/Factory | Evolved 2 slots: Utility x2 8563 | -6/Factory | Build established: Scavenger-Tank 9215 | -6/Factory | Discovered new exit (range 17) 9242 | -6/Factory | Build established: Scavenger-Assassin 9420 | -6/Factory | Fabricated R-10 Processor? 9901 | -6/Factory | Build established: Scavenger-Skirmisher 10049 | -6/Factory | Entered another Factory area 10049 | -5/Factory | Evolved 2 slots: Utility x2 10288 | -5/Factory | Discovered new exit (range 14) 10353 | -5/Factory | Build established: Scavenger-Tank 10378 | -5/Factory | Found Prototype Launcher 10379 | -5/Factory | Identified Mni. Smartbomb Launcher 10604 | -5/Factory | Entered another Factory area 10604 | -4/Factory | Evolved 2 slots: Power x2 10849 | -4/Factory | Discovered new exit (range 13) 11153 | -4/Factory | Entered Upper Caves 11539 | -4/Upper Caves | Attracted the attention of an 0b10 checkpoint 11947 | -4/Upper Caves | Attracted the attention of an 0b10 outpost 12149 | -4/Upper Caves | Discovered new exit (range 15) 12183 | -4/Upper Caves | Entered another Upper Caves area 12185 | -4/Upper Caves | Attracted the attention of an 0b10 outpost 12277 | -4/Upper Caves | Destroyed 11 combat bots 12284 | -4/Upper Caves | Lost 18 parts (2p5n3u8w) 12322 | -4/Upper Caves | System corruption reached 10% 12433 | -4/Upper Caves | Discovered new exit (range 9) 12460 | -4/Upper Caves | Entered Research 12460 | -3/Research | Accompanied by 1 ally 12460 | -3/Research | Evolved 2 slots: Propulsion x1, Utility x1 12661 | -3/Research | Build established: Scavenger-Gunner 13000 | -3/Research | System corruption reached 10% 13055 | -3/Research | Lost 12 parts (3p3n1u5w) 13457 | -3/Research | Discovered new exit (range 9) 13483 | -3/Research | Found Fusion Bomb Launcher 13496 | -3/Research | Found Prototype Processor 13497 | -3/Research | Identified Exp. Melee Analysis Suite 13542 | -3/Research | Identified exit to Research 13552 | -3/Research | Entered another Research area 13552 | -2/Research | Evolved 2 slots: Propulsion x1, Utility x1 13792 | -2/Research | Discovered new exit (range 13) 13841 | -2/Research | Identified exit to Access 13879 | -2/Research | Discovered new exit (range 15) 14096 | -2/Research | Build established: Scavenger-Tank 14244 | -2/Research | Identified exit to Testing 14686 | -2/Research | Found Prototype Processor 14687 | -2/Research | Identified Exp. Core Analyzer 14972 | -2/Research | Build established: Gunner 15302 | -2/Research | First assault squad dispatched 15414 | -2/Research | Destroyed 8 combat bots 15438 | -2/Research | System corruption reached 10% 15656 | -2/Research | Lost 3 parts (1u2w) 15668 | -2/Research | Build established: Scavenger-Gunner 15883 | -2/Research | Core integrity fell below 50% 15918 | -2/Research | Core integrity fell below 20% 15924 | -2/Research | Destroyed by H-88 Terminator with KE Penetrator Last Messages --------------- 15909_ Slug penetrates Wall. 15909_ Penetrated by Slug. 15909_ Falx destroyed. 15910_ Emergency Access malfunctions. 15911_ Slug penetrates Wall. 15913_ Slug penetrates H-88 Terminator. 15913_ Hcp. Storage Unit destroyed. 15915_ Penetrated by Slug. 15915_ KE Penetrator destroyed. 15915_ Slug penetrates Wall. 15917_ Destroyed Adv. Phase Shifter. 15918_ Slug penetrates Wall. 15918_ Nova Cannon destroyed. 15919_ Slug penetrates Wall. 15919_ Penetrated by Slug. 15919_ Lgt. Quantum Reactor destroyed. 15920_ Acquired Hvy. Machine Gun. 15922_ P-80 Master resets H-88 Terminator, system corruption cleaned. 15924_ Penetrated by Slug. Map ----- +----------------------------------------------------+ | % # % " % #?????????# #?????????????? | | # %############?????????# #?????????????? | | ####"# ##??????????#####???# #?????????????? | | #????????? #???# #?????????????? | | #????????? #???# #?????????????? | | "" !#?????????"" #???# #?????????????? | | "" #?????#???"F #??## ##+###########???? | | "Y #?????# "" ##### # #???? | | "" #?????# """ ## # # #???? | | "" #??????? """ ## ## + #???# | | #???????? ?## # % # [ #??# | | #?????????? ## # %[# #??# | | #######+#############+##""## % ################# | | =%%% = | | != *!= % !== | | = %* | | %![ !!= | | ^ ####/#####+##########"##+####### | | """ """ # p #%=! % ##! % | | """ """ # #[ %% ] # % | | """ """ # * # % % # =[ | | # p # % ## | | p ! / % !## | | # p#####+######### | | #########+# !%##% # | | ## ] # [ *@## # | | ## # =## ########## | | ## """ #] =h h # * #??######? | | ?#? """" ;]== ## #????????? | | ???? """" !;]= ## #????????? | | ???????????? """ # = ## #????????? | | ?????????# # #!!! ##???????? | | ?????????# # ##| =! % "##??????? | | ?????????# # !!##[ =!= " #?????? | | ?????????########?# |##!= [ ####?????? | | ??????????????????##########=!=[ #????????? | | ??????????#########"##############+######????????? | | ??????????# w #????????????? | | ??????????# #????????????? | | ??????????# #????????????? | | ?########## #????????????? | | ?# = # ####"######+##### #????????????? | | ?# # #! # #?????????????????? | | ## # # ! # #?????????????????? | | # + + # "" #?????????????????? | | # # # # """ #?????????????????? | | # # #"" # "R #?????????????????? | | # """ # #"" # """ +?????????????????? | | # """! !# #"" # "" #?????????????????? | | # """ # #S # ?? #?????????????????? | +----------------------------------------------------+ Best States ------------- Heat Dissipation 106 Coolant Potential 65 Energy Generation 63 Energy Capacity 1280 Matter Stores 600 Matter Capacity 600 Sight Range 16 Terrain Scan Range 20 Terrain Scan Density 210 ECM Strength 2 Base Temperature (-) 100 Armor Coverage 600 Resistance: KI 20 Core Shielding 20 Utility Shielding 66 Point Defense Rating 240 Evasion (%) 70 Targeting Accuracy 6 Core Analysis 8 Armor Integrity Analysis 30 Recoil Reduction 6 Energy Filtering 50 Defensive Hacking 10 Relay Coupler Types 1 Relay Coupler Value 24 Authchip Count 2 Item Schematics ----------------- None Robot Schematics ------------------ None Fabricated ------------ R-10 Processor | x2 | -6/Factory | Preloaded Repaired ---------- Arm. Wheel | 58% | -8/Materials Grenade Launcher | 36% | -8/Materials Studied --------- Com. Wheel | -9/Materials | Hacked Lgt. Treads | -9/Materials | Hacked Alien Tech Used ----------------- None Achievements -------------- A New Friend All Kinds Of Bad News Insider Info Join The Dark Side Mindtrick My Business Is Booming My Command Is Your Wish Ooh, Shiny! Sixth Sense Throw Away The Key Challenges ------------ None Game ------ Seed RainbowMicrodissipatorSword Manual? 0 Play Time 03:34:45 Cumulative 31.7 hours Start 2026.04.18 @ 12:40:57 End 2026.04.19 @ 17:53:18 Sessions 5 Manual Loads 0 Difficulty Rogue Special Mode None Game No. 17 Rogue 17 Adventurer 0 Explorer 0 Win Type - Total 0 Types 0/0/0/0/0/0/0/0/0/0 Lore% 14 Gallery% 29 Achievement% 20 Wizard Run 0 Options --------- Layout 1 ASCII 0 Keyboard 0 Movement Mouse Keybinds 0 Fullscreen 2 Font 32/Tamsyn Map View 50x35 Zoom Use 0% Tactical HUD 1 Map Filters NONE Filters NONE Steam 1 RUN: 8e22fb8e-bbe5-4639-965c-dba24f766ffe